[Event "1st SOA-GM Festival 2024"]
[Site "Bhubaneswar"]
[Date "2024.02.01"]
[Round "6.8"]
[White "Panda Sambit"]
[Black "Roy Chowdhury, Saptarshi"]
[Result "1-0"]
[WhiteElo "2404"]
[BlackElo "2233"]
[PlyCount "41"]
[EventDate "2024.02.01"]
[EventType "swiss"]
[EventCountry "IND"]
[TimeControl "5400+30"]

1. d4 {[%emt 0:00:51]} Nf6 {[%emt 0:00:08]} 2. c4 {[%emt 0:00:16]} d6 {[%emt 0:01:36]} 3. Nf3 {[%emt 0:00:17]} Bf5 {[%emt 0:00:21]} 4. Nc3 {[%emt 0:00:11]} Nbd7 {[%emt 1:30:25]} 5. Nh4 {[%emt 0:06:49]} Bg6 {[%emt 0:00:00]} 6. g3 {[%emt 0:07:25]} e5 {[%emt 0:00:00]} 7. Bg2 {[%emt 0:01:10]} c6 {[%emt 0:00:00]} 8. Nxg6 {[%emt 0:11:08]} hxg6 {[%emt 0:00:00]} 9. e4 {[%emt 0:01:41]} Be7 {[%emt 0:00:00]} 10. Be3 {[%emt 0:02:59]} Qa5 {[%emt 0:00:00]} 11. O-O {[%emt 0:21:50]} exd4 {[%emt 0:00:00]} 12. Bxd4 {[%emt 0:01:15]} Ne5 {[%emt 0:00:00]} 13. f4 {[%emt 0:07:37]} Nxc4 {[%emt 0:00:00]} 14. Qe2 {[%emt 0:02:11]} Nb6 {[%emt 0:00:00]} 15. e5 {[%emt 0:02:11]} dxe5 {[%emt 0:00:00]} 16. fxe5 {[%emt 0:00:10]} Nfd5 {[%emt 0:00:00]} 17. Qg4 {[%emt 0:09:26]} Rd8 {[%emt 0:00:00]} 18. Rxf7 {[%emt 0:10:40]} Kxf7 {[%emt 0:00:00]} 19. e6+ {[%emt 0:00:41]} Kg8 {[%emt 0:00:00]} 20. Qxg6 {[%emt 0:00:11]} Nf6 {[%emt 0:00:00]} 21. Qf7+ {[%emt 0:00:13]} 1-0

[Event "1st SOA-GM Festival 2024"]
[Site "Bhubaneswar"]
[Date "2024.02.01"]
[Round "6.9"]
[White "Dere Pushkar"]
[Black "Subhayan Kundu"]
[Result "0-1"]
[WhiteElo "2191"]
[BlackElo "2385"]
[PlyCount "59"]
[EventDate "2024.02.01"]
[EventType "swiss"]
[EventCountry "IND"]
[TimeControl "5400+30"]

1. e4 {[%emt 0:00:12]} e5 {[%emt 0:00:16]} 2. Nf3 {[%emt 0:00:38]} Nc6 {[%emt 0:00:14]} 3. Bc4 {[%emt 0:00:09]} Nf6 {[%emt 0:00:15]} 4. Ng5 {[%emt 0:00:04]} d5 {[%emt 0:00:32]} 5. exd5 {[%emt 0:00:08]} Na5 {[%emt 0:00:26]} 6. Bb5+ {[%emt 0:00:06]} c6 {[%emt 0:00:11]} 7. dxc6 {[%emt 0:01:52]} bxc6 {[%emt 0:00:01]} 8. Bd3 {[%emt 0:00:11]} Nd5 {[%emt 0:01:01]} 9. Nf3 {[%emt 0:00:11]} Bd6 {[%emt 0:00:11]} 10. O-O {[%emt 0:00:09]} O-O {[%emt 0:06:03]} 11. Re1 {[%emt 0:02:47]} f5 {[%emt 0:01:06]} 12. Nxe5 {[%emt 0:00:06]} Qf6 {[%emt 0:00:12]} 13. Nf3 {[%emt 0:00:27]} g5 {[%emt 0:00:10]} 14. c4 {[%emt 0:00:12]} Nf4 {[%emt 0:00:19]} 15. Bf1 {[%emt 0:00:05]} g4 {[%emt 0:00:13]} 16. d4 {[%emt 0:00:08]} gxf3 {[%emt 0:00:25]} 17. Qxf3 {[%emt 0:00:05]} Ne6 {[%emt 0:00:13]} 18. Qc3 {[%emt 0:00:11]} Nxd4 {[%emt 0:00:56]} 19. c5 {[%emt 0:01:00]} Be5 {[%emt 0:00:20]} 20. Qxa5 {[%emt 0:19:02]} f4 {[%emt 0:01:25]} 21. Nd2 {[%emt 0:18:11]} Bf5 {[%emt 0:03:43]} 22. Nc4 {[%emt 0:03:15]} Nf3+ {[%emt 0:00:35]} 23. gxf3 {[%emt 0:28:14]} Qg5+ {[%emt 0:01:04]} 24. Kh1 {[%emt 0:00:55]} Rf7 {[%emt 0:00:09]} 25. Bh3 {[%emt 0:06:10]} Rg7 {[%emt 0:04:17]} 26. Bxf4 {[%emt 0:02:58]} Qxf4 {[%emt 0:00:36]} 27. Nxe5 {[%emt 0:00:14]} Bxh3 {[%emt 0:00:07]} 28. Qc3 {[%emt 0:06:30]} Bg2+ {[%emt 0:00:29]} 29. Kg1 {[%emt 0:00:04]} Bxf3+ {[%emt 0:00:16]} 30. Kf1 {[%emt 0:00:02]} 0-1

[Event "1st SOA-GM Festival 2024"]
[Site "Bhubaneswar"]
[Date "2024.02.01"]
[Round "6.10"]
[White "Nithin Babu"]
[Black "Shahil Dey"]
[Result "0-1"]
[WhiteElo "2177"]
[BlackElo "2363"]
[PlyCount "58"]
[EventDate "2024.02.01"]
[EventType "swiss"]
[EventCountry "IND"]
[TimeControl "5400+30"]

1. e4 {[%emt 0:00:05]} c5 {[%emt 0:00:52]} 2. Nf3 {[%emt 0:00:06]} d6 {[%emt 0:00:03]} 3. d4 {[%emt 0:00:10]} cxd4 {[%emt 0:00:18]} 4. Qxd4 {[%emt 0:00:08]} Nf6 {[%emt 0:01:58]} 5. Be2 {[%emt 0:00:53]} Nc6 {[%emt 0:00:47]} 6. Qe3 {[%emt 0:00:15]} g6 {[%emt 0:07:14]} 7. c4 {[%emt 0:01:12]} Bg4 {[%emt 0:08:34]} 8. O-O {[%emt 0:02:37]} h5 {[%emt 0:07:10]} 9. Ng5 {[%emt 0:11:22]} Bg7 {[%emt 0:01:58]} 10. Nc3 {[%emt 0:02:01]} Rc8 {[%emt 0:05:10]} 11. b3 {[%emt 0:06:08]} Bxe2 {[%emt 0:12:19]} 12. Qxe2 {[%emt 0:00:15]} Nh7 {[%emt 0:01:27]} 13. Qf3 {[%emt 0:05:39]} Ne5 {[%emt 0:07:34]} 14. Qh3 {[%emt 0:03:02]} Qd7 {[%emt 0:00:13]} 15. Qg3 {[%emt 0:12:18]} h4 {[%emt 0:00:38]} 16. Qxh4 {[%emt 0:03:39]} Qg4 {[%emt 0:08:42]} 17. Qg3 {[%emt 0:05:55]} Qxg3 {[%emt 0:00:16]} 18. hxg3 {[%emt 0:00:29]} Ng4 {[%emt 0:01:44]} 19. Nxf7 {[%emt 0:05:29]} Kxf7 {[%emt 0:00:24]} 20. Bd2 {[%emt 0:00:30]} Bd4 {[%emt 0:01:29]} 21. Rad1 {[%emt 0:01:11]} Nhf6 {[%emt 0:00:15]} 22. Ne2 {[%emt 0:02:15]} Bb6 {[%emt 0:02:13]} 23. Nf4 {[%emt 0:00:24]} Nxe4 {[%emt 0:00:20]} 24. Nh3 {[%emt 0:00:19]} Nxg3 {[%emt 0:00:50]} 25. Rfe1 {[%emt 0:01:49]} Nxf2 {[%emt 0:00:24]} 26. Rf1 {[%emt 0:00:36]} Ne2+ {[%emt 0:01:11]} 27. Kh2 {[%emt 0:00:02]} Ke8 {[%emt 0:00:12]} 28. Rxf2 {[%emt 0:02:05]} Bxf2 {[%emt 0:00:05]} 29. Bg5 {[%emt 0:00:33]} Rc5 {[%emt 0:00:13]} 0-1

[Event "1st SOA-GM Festival 2024"]
[Site "Bhubaneswar"]
[Date "2024.02.01"]
[Round "6.11"]
[White "Fawzy, Adham"]
[Black "Aakash Sharadchandra, Dalvi"]
[Result "1-0"]
[WhiteElo "2522"]
[BlackElo "2180"]
[PlyCount "71"]
[EventDate "2024.02.01"]
[EventType "swiss"]
[EventCountry "IND"]
[TimeControl "5400+30"]

1. e4 {[%emt 0:00:38]} c5 {[%emt 0:00:13]} 2. Nf3 {[%emt 0:00:10]} Nc6 {[%emt 0:00:05]} 3. Bb5 {[%emt 0:01:57]} Nf6 {[%emt 0:00:14]} 4. Nc3 {[%emt 0:01:54]} g6 {[%emt 0:00:13]} 5. O-O {[%emt 0:02:48]} Bg7 {[%emt 0:00:21]} 6. Re1 {[%emt 0:01:17]} O-O {[%emt 0:01:14]} 7. e5 {[%emt 0:00:37]} Ng4 {[%emt 0:00:45]} 8. Bxc6 {[%emt 0:00:28]} dxc6 {[%emt 0:00:07]} 9. h3 {[%emt 0:00:15]} Nh6 {[%emt 0:00:08]} 10. Ne4 {[%emt 0:01:02]} b6 {[%emt 0:01:55]} 11. Ng3 {[%emt 0:06:17]} Nf5 {[%emt 1:30:45]} 12. Nxf5 {[%emt 0:00:08]} Bxf5 {[%emt 0:00:00]} 13. b3 {[%emt 0:01:24]} Qc7 {[%emt 0:00:00]} 14. d3 {[%emt 0:00:30]} Rad8 {[%emt 0:00:00]} 15. Bf4 {[%emt 0:03:20]} h6 {[%emt 0:00:00]} 16. Qc1 {[%emt 0:02:16]} g5 {[%emt 0:00:00]} 17. Bg3 {[%emt 0:00:29]} Qc8 {[%emt 0:00:00]} 18. a4 {[%emt 0:00:36]} Bg6 {[%emt 0:00:00]} 19. Nd2 {[%emt 0:07:25]} f5 {[%emt 0:00:00]} 20. f4 {[%emt 0:01:41]} gxf4 {[%emt 0:00:00]} 21. Bxf4 {[%emt 0:02:05]} Kh7 {[%emt 0:00:00]} 22. Qd1 {[%emt 0:04:58]} Rg8 {[%emt 0:00:00]} 23. Qf3 {[%emt 0:04:13]} Bf7 {[%emt 0:00:00]} 24. Qf2 {[%emt 0:01:26]} Bf8 {[%emt 0:00:00]} 25. Re3 {[%emt 0:05:31]} Bd5 {[%emt 0:00:00]} 26. Rg3 {[%emt 0:01:12]} Rxg3 {[%emt 0:00:00]} 27. Qxg3 {[%emt 0:01:38]} Bg7 {[%emt 0:00:00]} 28. Qh4 {[%emt 0:00:26]} Qd7 {[%emt 0:00:00]} 29. Re1 {[%emt 0:03:48]} Rg8 {[%emt 0:00:00]} 30. Re2 {[%emt 0:00:54]} Bf8 {[%emt 0:00:00]} 31. e6 {[%emt 0:06:05]} Bxe6 {[%emt 0:00:00]} 32. Nf3 {[%emt 0:01:55]} Rg6 {[%emt 0:00:00]} 33. Ne5 {[%emt 0:00:58]} Qd4+ {[%emt 0:00:00]} 34. Kh2 {[%emt 0:00:19]} Rf6 {[%emt 0:00:00]} 35. Bg5 {[%emt 0:00:59]} Qxh4 {[%emt 0:00:00]} 36. Bxh4 {[%emt 0:00:03]} 1-0

[Event "1st SOA-GM Festival 2024"]
[Site "Bhubaneswar"]
[Date "2024.02.01"]
[Round "6.12"]
[White "Elgabry, Mohsen"]
[Black "Sammed Jaykumar, Shete"]
[Result "0-1"]
[WhiteElo "2160"]
[BlackElo "2441"]
[PlyCount "94"]
[EventDate "2024.02.01"]
[EventType "swiss"]
[EventCountry "IND"]
[TimeControl "5400+30"]

1. b3 {[%emt 0:00:16]} Nf6 {[%emt 0:00:15]} 2. Bb2 {[%emt 0:00:09]} g6 {[%emt 0:00:04]} 3. Nf3 {[%emt 0:03:09]} Bg7 {[%emt 0:00:06]} 4. e3 {[%emt 0:00:21]} c5 {[%emt 0:00:26]} 5. c4 {[%emt 0:00:31]} O-O {[%emt 0:01:07]} 6. Be2 {[%emt 0:00:35]} Nc6 {[%emt 0:04:21]} 7. O-O {[%emt 0:02:20]} d6 {[%emt 0:00:20]} 8. d4 {[%emt 0:01:53]} cxd4 {[%emt 0:00:45]} 9. Nxd4 {[%emt 0:00:22]} Bd7 {[%emt 0:02:29]} 10. Nc3 {[%emt 0:04:00]} Qa5 {[%emt 0:02:55]} 11. a3 {[%emt 0:05:41]} Rfc8 {[%emt 0:03:24]} 12. Rc1 {[%emt 0:02:50]} Rab8 {[%emt 0:04:28]} 13. Re1 {[%emt 0:01:47]} a6 {[%emt 0:00:41]} 14. Bf1 {[%emt 0:03:55]} Qd8 {[%emt 0:07:30]} 15. b4 {[%emt 0:03:27]} b5 {[%emt 0:06:45]} 16. Nxc6 {[%emt 0:04:08]} Bxc6 {[%emt 0:01:24]} 17. cxb5 {[%emt 0:00:53]} axb5 {[%emt 0:00:17]} 18. Qd2 {[%emt 0:08:39]} Ng4 {[%emt 0:02:33]} 19. Ne2 {[%emt 0:04:09]} Ne5 {[%emt 0:01:37]} 20. Nd4 {[%emt 0:00:23]} Bd7 {[%emt 0:00:17]} 21. Rxc8 {[%emt 0:00:29]} Qxc8 {[%emt 0:00:05]} 22. Rc1 {[%emt 0:00:24]} Qb7 {[%emt 0:01:15]} 23. Nb3 {[%emt 0:02:23]} h5 {[%emt 0:13:02]} 24. Na5 {[%emt 0:02:26]} Qe4 {[%emt 0:00:40]} 25. f3 {[%emt 0:06:20]} Qf5 {[%emt 0:01:15]} 26. f4 {[%emt 0:03:08]} Ng4 {[%emt 0:00:21]} 27. Bxg7 {[%emt 0:00:15]} Kxg7 {[%emt 0:00:05]} 28. h3 {[%emt 0:00:46]} Nf6 {[%emt 0:00:13]} 29. Qd4 {[%emt 0:01:04]} Kg8 {[%emt 0:05:28]} 30. Bd3 {[%emt 0:05:27]} Qe6 {[%emt 0:00:06]} 31. e4 {[%emt 0:03:06]} Qa2 {[%emt 0:07:41]} 32. Rc7 {[%emt 0:04:11]} Rd8 {[%emt 0:04:02]} 33. e5 {[%emt 0:08:00]} Ne8 {[%emt 0:12:08]} 34. Rxd7 {[%emt 0:02:06]} Rxd7 {[%emt 0:00:52]} 35. Bxb5 {[%emt 0:00:08]} Rc7 {[%emt 0:02:29]} 36. Bxe8 {[%emt 0:01:34]} Rc1+ {[%emt 0:00:03]} 37. Kh2 {[%emt 0:00:10]} Qb1 {[%emt 0:00:16]} 38. Kg3 {[%emt 0:02:38]} Rf1 {[%emt 0:00:42]} 39. Qe3 {[%emt 0:00:42]} d5 {[%emt 0:02:53]} 40. Nc6 {[%emt 0:01:02]} Kf8 {[%emt 0:00:46]} 41. Bd7 {[%emt 0:01:00]} Rd1 {[%emt 0:04:43]} 42. Qc5 {[%emt 0:00:58]} Qe4 {[%emt 0:01:47]} 43. Qxe7+ {[%emt 0:00:52]} Kg8 {[%emt 0:00:05]} 44. Qd8+ {[%emt 0:00:20]} Kh7 {[%emt 0:00:04]} 45. Bg4 {[%emt 0:06:27]} Qe1+ {[%emt 0:00:53]} 46. Kh2 {[%emt 0:00:01]} hxg4 {[%emt 0:00:16]} 47. hxg4 {[%emt 0:02:27]} Rd3 {[%emt 0:00:15]} 0-1

[Event "1st SOA-GM Festival 2024"]
[Site "Bhubaneswar"]
[Date "2024.02.01"]
[Round "6.13"]
[White "John Veny Akkarakaran"]
[Black "Sidhant, Mohapatra"]
[Result "1-0"]
[WhiteElo "2112"]
[BlackElo "2421"]
[PlyCount "103"]
[EventDate "2024.02.01"]
[EventType "swiss"]
[EventCountry "IND"]
[TimeControl "5400+30"]

1. e4 {[%emt 0:00:57]} c5 {[%emt 0:00:32]} 2. Nf3 {[%emt 0:00:10]} d6 {[%emt 0:00:22]} 3. d4 {[%emt 0:00:11]} cxd4 {[%emt 0:00:06]} 4. Nxd4 {[%emt 0:00:20]} Nf6 {[%emt 0:00:07]} 5. Nc3 {[%emt 0:00:18]} a6 {[%emt 0:00:41]} 6. Be2 {[%emt 0:00:30]} e5 {[%emt 0:00:17]} 7. Nb3 {[%emt 0:00:38]} Be7 {[%emt 0:00:44]} 8. O-O {[%emt 0:00:21]} O-O {[%emt 0:00:04]} 9. Qd3 {[%emt 0:01:15]} Qc7 {[%emt 0:02:13]} 10. Bd2 {[%emt 0:09:58]} Nbd7 {[%emt 0:02:20]} 11. a4 {[%emt 0:01:46]} b6 {[%emt 0:00:09]} 12. Rfd1 {[%emt 0:05:04]} Bb7 {[%emt 0:00:22]} 13. Be3 {[%emt 0:02:47]} Rac8 {[%emt 0:10:23]} 14. Rd2 {[%emt 0:06:45]} h6 {[%emt 0:08:58]} 15. f3 {[%emt 0:04:06]} Rcd8 {[%emt 0:05:52]} 16. Bf1 {[%emt 0:05:04]} Nc5 {[%emt 0:04:22]} 17. Qc4 {[%emt 0:07:03]} Qb8 {[%emt 0:04:31]} 18. Nxc5 {[%emt 0:06:40]} dxc5 {[%emt 0:00:08]} 19. Rad1 {[%emt 0:02:43]} Rxd2 {[%emt 0:00:18]} 20. Rxd2 {[%emt 0:00:40]} Rd8 {[%emt 0:00:05]} 21. Qb3 {[%emt 0:03:53]} Rd5 {[%emt 0:00:55]} 22. Qc4 {[%emt 0:00:00]} Rd8 {[%emt 0:00:05]} 23. Qb3 {[%emt 0:01:00]} Rxd2 {[%emt 0:00:39]} 24. Bxd2 {[%emt 0:00:05]} Qd8 {[%emt 0:01:22]} 25. Be3 {[%emt 0:00:30]} Ne8 {[%emt 0:00:24]} 26. Bc4 {[%emt 0:04:56]} Nd6 {[%emt 0:00:58]} 27. Bd5 {[%emt 0:01:44]} Bg5 {[%emt 0:05:25]} 28. Bf2 {[%emt 0:01:55]} Bd2 {[%emt 0:01:16]} 29. Bxb7 {[%emt 0:04:19]} Nxb7 {[%emt 0:00:23]} 30. Nd5 {[%emt 0:00:30]} Ba5 {[%emt 0:00:03]} 31. Qd3 {[%emt 0:12:03]} Qa8 {[%emt 0:01:51]} 32. Bg3 {[%emt 0:01:46]} f6 {[%emt 0:00:19]} 33. c3 {[%emt 0:02:40]} b5 {[%emt 0:01:36]} 34. axb5 {[%emt 0:01:20]} axb5 {[%emt 0:00:03]} 35. Qxb5 {[%emt 0:00:30]} Kh7 {[%emt 0:00:03]} 36. h4 {[%emt 0:03:05]} Qc8 {[%emt 0:00:41]} 37. Kh2 {[%emt 0:02:39]} c4 {[%emt 0:00:28]} 38. Ne3 {[%emt 0:02:26]} Bd8 {[%emt 0:00:07]} 39. Nxc4 {[%emt 0:00:25]} Be7 {[%emt 0:00:10]} 40. b4 {[%emt 0:01:08]} Bf8 {[%emt 0:00:12]} 41. Qd5 {[%emt 0:00:34]} Qc7 {[%emt 0:00:20]} 42. Bf2 {[%emt 0:00:38]} Nd6 {[%emt 0:00:57]} 43. Nxd6 {[%emt 0:00:27]} Bxd6 {[%emt 0:00:01]} 44. b5 {[%emt 0:01:20]} Ba3 {[%emt 0:00:05]} 45. Qb3 {[%emt 0:05:51]} Bc1 {[%emt 0:00:07]} 46. b6 {[%emt 0:00:00]} Qb7 {[%emt 0:00:04]} 47. c4 {[%emt 0:00:00]} Qd7 {[%emt 0:01:54]} 48. Qc2 {[%emt 0:00:00]} Ba3 {[%emt 0:00:27]} 49. c5 {[%emt 0:00:00]} Qc6 {[%emt 0:00:05]} 50. Qc4 {[%emt 0:00:00]} Bb2 {[%emt 0:00:47]} 51. Qb3 {[%emt 0:00:03]} Bd4 {[%emt 0:00:30]} 52. b7 {[%emt 0:00:39]} 1-0

[Event "1st SOA-GM Festival 2024"]
[Site "Bhubaneswar"]
[Date "2024.02.01"]
[Round "6.14"]
[White "Vrashank Chouhan"]
[Black "Namitbir Singh Walia"]
[Result "1-0"]
[WhiteElo "2046"]
[BlackElo "2408"]
[PlyCount "59"]
[EventDate "2024.02.01"]
[EventType "swiss"]
[EventCountry "IND"]
[TimeControl "5400+30"]

1. d4 {[%emt 0:00:29]} Nf6 {[%emt 0:00:07]} 2. c4 {[%emt 0:00:07]} g6 {[%emt 0:00:04]} 3. Nc3 {[%emt 0:00:06]} d5 {[%emt 0:00:04]} 4. cxd5 {[%emt 0:00:05]} Nxd5 {[%emt 0:00:05]} 5. e4 {[%emt 0:00:04]} Nxc3 {[%emt 0:00:05]} 6. bxc3 {[%emt 0:00:04]} Bg7 {[%emt 0:00:09]} 7. Bc4 {[%emt 0:00:05]} c5 {[%emt 0:01:16]} 8. Ne2 {[%emt 0:00:10]} Nc6 {[%emt 0:00:46]} 9. Be3 {[%emt 0:00:05]} O-O {[%emt 0:00:42]} 10. O-O {[%emt 0:00:07]} Bg4 {[%emt 0:01:53]} 11. f3 {[%emt 0:00:08]} Bd7 {[%emt 0:00:34]} 12. Rb1 {[%emt 0:00:05]} Qc7 {[%emt 0:09:06]} 13. Bf4 {[%emt 0:00:06]} e5 {[%emt 0:05:58]} 14. Bg3 {[%emt 0:00:09]} cxd4 {[%emt 0:04:33]} 15. cxd4 {[%emt 0:03:14]} Rac8 {[%emt 0:05:44]} 16. Bd5 {[%emt 0:10:45]} Nxd4 {[%emt 0:20:50]} 17. Nxd4 {[%emt 0:20:48]} Qc5 {[%emt 0:01:34]} 18. Bxb7 {[%emt 0:04:42]} Rcd8 {[%emt 0:06:07]} 19. Rc1 {[%emt 0:10:33]} Qb4 {[%emt 0:08:07]} 20. Qb3 {[%emt 0:12:45]} Qxd4+ {[%emt 0:01:13]} 21. Bf2 {[%emt 0:00:04]} Qd2 {[%emt 0:09:42]} 22. Rfd1 {[%emt 0:04:04]} Qe2 {[%emt 0:02:06]} 23. Bd5 {[%emt 0:06:55]} Bh6 {[%emt 0:02:20]} 24. Bc4 {[%emt 0:02:12]} Be6 {[%emt 0:02:59]} 25. Bxe2 {[%emt 0:00:58]} Bxb3 {[%emt 0:00:05]} 26. axb3 {[%emt 0:00:15]} Bxc1 {[%emt 0:00:03]} 27. Rxc1 {[%emt 0:00:05]} Rd2 {[%emt 0:01:43]} 28. Bc4 {[%emt 0:04:24]} Kg7 {[%emt 0:01:15]} 29. Bd5 {[%emt 0:03:04]} a5 {[%emt 0:01:02]} 30. Bb6 {[%emt 0:01:25]} 1-0

[Event "1st SOA-GM Festival 2024"]
[Site "Bhubaneswar"]
[Date "2024.02.01"]
[Round "6.15"]
[White "Tologon tegin, Semetei"]
[Black "Aquino, Jethro Dino"]
[Result "1-0"]
[WhiteElo "2384"]
[BlackElo "2166"]
[PlyCount "73"]
[EventDate "2024.02.01"]
[EventType "swiss"]
[EventCountry "IND"]
[TimeControl "5400+30"]

1. c4 {[%emt 0:00:29]} Nf6 {[%emt 0:00:28]} 2. g3 {[%emt 0:00:15]} c5 {[%emt 0:02:16]} 3. Bg2 {[%emt 0:00:13]} d5 {[%emt 0:00:37]} 4. cxd5 {[%emt 0:08:01]} Nxd5 {[%emt 0:00:07]} 5. Qb3 {[%emt 0:00:04]} e6 {[%emt 0:02:37]} 6. Nc3 {[%emt 0:00:54]} Nb6 {[%emt 0:00:58]} 7. d3 {[%emt 0:00:51]} Nc6 {[%emt 0:00:47]} 8. Bxc6+ {[%emt 0:00:51]} bxc6 {[%emt 0:00:06]} 9. Nf3 {[%emt 0:02:22]} Nd5 {[%emt 0:03:24]} 10. O-O {[%emt 0:00:35]} Be7 {[%emt 0:01:15]} 11. Bd2 {[%emt 0:00:43]} Qb6 {[%emt 0:04:40]} 12. Qc2 {[%emt 0:01:46]} Nxc3 {[%emt 0:12:20]} 13. Bxc3 {[%emt 0:03:06]} f6 {[%emt 0:00:26]} 14. Rfc1 {[%emt 0:00:55]} e5 {[%emt 0:04:25]} 15. Bd2 {[%emt 0:29:31]} Bg4 {[%emt 0:01:45]} 16. Be3 {[%emt 0:03:32]} Bxf3 {[%emt 0:03:49]} 17. exf3 {[%emt 0:00:14]} O-O {[%emt 0:04:15]} 18. Bxc5 {[%emt 0:00:40]} Bxc5 {[%emt 0:00:11]} 19. Qxc5 {[%emt 0:00:04]} Rac8 {[%emt 0:01:59]} 20. b3 {[%emt 0:02:19]} Rfd8 {[%emt 0:02:55]} 21. Qc4+ {[%emt 0:00:47]} Kh8 {[%emt 0:03:26]} 22. Rc3 {[%emt 0:00:05]} c5 {[%emt 0:03:26]} 23. Rac1 {[%emt 0:00:07]} Rc7 {[%emt 0:12:25]} 24. Qa4 {[%emt 0:01:11]} h6 {[%emt 0:02:42]} 25. f4 {[%emt 0:02:18]} Qd6 {[%emt 0:01:13]} 26. fxe5 {[%emt 0:00:12]} Qxe5 {[%emt 0:00:05]} 27. Qb5 {[%emt 0:04:53]} Qe2 {[%emt 0:11:37]} 28. a4 {[%emt 0:17:57]} Rcd7 {[%emt 0:00:49]} 29. Qxc5 {[%emt 0:00:16]} Rxd3 {[%emt 0:00:18]} 30. Rxd3 {[%emt 0:00:04]} Qxd3 {[%emt 0:00:09]} 31. b4 {[%emt 0:00:28]} Qb3 {[%emt 0:01:26]} 32. a5 {[%emt 0:00:24]} Re8 {[%emt 0:01:29]} 33. a6 {[%emt 0:01:42]} Re5 {[%emt 0:00:54]} 34. Qxa7 {[%emt 0:01:49]} Qxb4 {[%emt 0:01:44]} 35. Qb7 {[%emt 0:00:50]} Rb5 {[%emt 0:00:04]} 36. Qc8+ {[%emt 0:00:33]} Kh7 {[%emt 0:00:05]} 37. a7 {[%emt 0:00:07]} 1-0

[Event "1st SOA-GM Festival 2024"]
[Site "Bhubaneswar"]
[Date "2024.02.01"]
[Round "6.16"]
[White "Gonzales, Jayson"]
[Black "Patil Priyanshu"]
[Result "1/2-1/2"]
[WhiteElo "2367"]
[BlackElo "2022"]
[PlyCount "70"]
[EventDate "2024.02.01"]
[EventType "swiss"]
[EventCountry "IND"]
[TimeControl "5400+30"]

1. d4 {[%emt 0:00:04]} Nf6 {[%emt 0:01:22]} 2. Nf3 {[%emt 0:00:42]} g6 {[%emt 0:00:11]} 3. g3 {[%emt 0:01:06]} Bg7 {[%emt 0:00:40]} 4. Bg2 {[%emt 0:00:07]} c5 {[%emt 0:01:13]} 5. d5 {[%emt 0:08:58]} d6 {[%emt 0:01:14]} 6. O-O {[%emt 0:00:45]} O-O {[%emt 0:00:24]} 7. c4 {[%emt 0:00:13]} b5 {[%emt 0:02:40]} 8. cxb5 {[%emt 0:06:54]} a6 {[%emt 0:00:37]} 9. b6 {[%emt 0:05:19]} Nbd7 {[%emt 0:00:46]} 10. Nc3 {[%emt 0:08:14]} Nxb6 {[%emt 0:01:40]} 11. e4 {[%emt 0:11:13]} Nfd7 {[%emt 0:02:37]} 12. Bf4 {[%emt 0:04:48]} a5 {[%emt 0:10:07]} 13. Re1 {[%emt 0:03:23]} Nc4 {[%emt 0:01:17]} 14. Qc2 {[%emt 0:07:23]} Ba6 {[%emt 0:02:36]} 15. Bf1 {[%emt 0:03:13]} Nce5 {[%emt 0:01:01]} 16. Nxe5 {[%emt 0:00:17]} Nxe5 {[%emt 0:00:03]} 17. Bxe5 {[%emt 0:00:07]} Bxe5 {[%emt 0:00:08]} 18. Bxa6 {[%emt 0:00:10]} Rxa6 {[%emt 0:00:01]} 19. a4 {[%emt 0:00:11]} Qd7 {[%emt 0:21:55]} 20. Kg2 {[%emt 0:03:54]} Bxc3 {[%emt 0:01:15]} 21. bxc3 {[%emt 0:02:46]} Rb6 {[%emt 0:01:50]} 22. e5 {[%emt 0:03:21]} dxe5 {[%emt 0:00:41]} 23. Rxe5 {[%emt 0:00:10]} f6 {[%emt 0:01:07]} 24. Re2 {[%emt 0:04:10]} Qxd5+ {[%emt 0:01:43]} 25. Qe4 {[%emt 0:00:02]} Qxe4+ {[%emt 0:06:50]} 26. Rxe4 {[%emt 0:00:01]} Kf7 {[%emt 0:04:00]} 27. Rd1 {[%emt 0:07:29]} Rb7 {[%emt 0:02:23]} 28. Rd5 {[%emt 0:02:21]} Rc8 {[%emt 0:00:39]} 29. Kf3 {[%emt 0:01:00]} f5 {[%emt 0:05:00]} 30. Ree5 {[%emt 0:01:41]} Rb3 {[%emt 0:10:13]} 31. Rxc5 {[%emt 0:01:42]} Rxc3+ {[%emt 0:00:05]} 32. Rxc3 {[%emt 0:00:05]} Rxc3+ {[%emt 0:00:04]} 33. Kg2 {[%emt 0:00:11]} Ra3 {[%emt 0:00:23]} 34. Rxa5 {[%emt 0:00:04]} e5 {[%emt 0:02:16]} 35. Ra7+ {[%emt 0:00:31]} Kf6 {[%emt 0:00:12]} 1/2-1/2

[Event "1st SOA-GM Festival 2024"]
[Site "Bhubaneswar"]
[Date "2024.02.01"]
[Round "6.17"]
[White "Barath Kalyan M"]
[Black "Liyanage, Ranindu Dilshan"]
[Result "1/2-1/2"]
[WhiteElo "2040"]
[BlackElo "2366"]
[PlyCount "66"]
[EventDate "2024.02.01"]
[EventType "swiss"]
[EventCountry "IND"]
[TimeControl "5400+30"]

1. b3 {[%emt 0:00:22]} e5 {[%emt 0:01:13]} 2. Bb2 {[%emt 0:00:04]} Nc6 {[%emt 0:00:07]} 3. c4 {[%emt 0:00:04]} Nge7 {[%emt 0:00:32]} 4. e3 {[%emt 0:00:17]} d5 {[%emt 0:00:05]} 5. cxd5 {[%emt 0:00:05]} Nxd5 {[%emt 0:00:05]} 6. a3 {[%emt 0:00:04]} Be6 {[%emt 0:00:48]} 7. Qc2 {[%emt 0:00:07]} Qd7 {[%emt 0:00:13]} 8. Nf3 {[%emt 0:00:06]} f6 {[%emt 0:00:06]} 9. b4 {[%emt 0:00:35]} O-O-O {[%emt 0:00:35]} 10. b5 {[%emt 0:01:18]} Na5 {[%emt 0:01:31]} 11. d4 {[%emt 0:00:50]} e4 {[%emt 0:00:13]} 12. Nfd2 {[%emt 0:00:15]} f5 {[%emt 0:00:14]} 13. Nc3 {[%emt 0:00:34]} Nb6 {[%emt 0:03:04]} 14. Na4 {[%emt 0:04:09]} Qf7 {[%emt 0:02:38]} 15. Rc1 {[%emt 0:06:20]} Kb8 {[%emt 0:26:09]} 16. Nc5 {[%emt 0:04:30]} Bxc5 {[%emt 0:04:10]} 17. dxc5 {[%emt 0:08:20]} Nb3 {[%emt 0:06:42]} 18. cxb6 {[%emt 0:09:07]} Rxd2 {[%emt 0:00:32]} 19. Qxc7+ {[%emt 0:01:21]} Ka8 {[%emt 0:18:27]} 20. Bxg7 {[%emt 0:06:57]} Rhd8 {[%emt 0:03:35]} 21. Bd4 {[%emt 0:07:23]} Qe8 {[%emt 0:07:28]} 22. Bc4 {[%emt 0:07:52]} Nxd4 {[%emt 0:06:29]} 23. exd4 {[%emt 0:02:02]} R2xd4 {[%emt 0:00:30]} 24. Bxe6 {[%emt 0:04:52]} Qxe6 {[%emt 0:00:07]} 25. O-O {[%emt 0:00:34]} axb6 {[%emt 0:01:22]} 26. a4 {[%emt 0:03:29]} e3 {[%emt 0:04:06]} 27. fxe3 {[%emt 0:02:03]} Qxe3+ {[%emt 0:00:06]} 28. Kh1 {[%emt 0:00:22]} R4d7 {[%emt 0:04:13]} 29. Qf4 {[%emt 0:04:54]} Qxf4 {[%emt 0:03:13]} 30. Rxf4 {[%emt 0:00:02]} Rd1+ {[%emt 0:00:12]} 31. Rf1 {[%emt 0:00:02]} Rxc1 {[%emt 0:00:24]} 32. Rxc1 {[%emt 0:00:03]} Rd4 {[%emt 0:00:15]} 33. g3 {[%emt 0:04:24]} f4 {[%emt 0:05:11]} 1/2-1/2